[Event "22nd Ruzomberok Open 2019"]
[Site "Ruzomberok"]
[Date "2019.07.05"]
[Round "7.20"]
[White "Marsina, Stefan"]
[Black "Kukan, Michal"]
[Result "1-0"]
[ECO "A46"]
[WhiteElo "1857"]
[BlackElo "1698"]
[Annotator "NA"]
[PlyCount "83"]
[EventDate "2019.06.29"]
[EventType "swiss"]
[EventCountry "SVK"]
[SourceTitle "playchess.com"]
[Source "ChessBase"]
[SourceQuality "1"]
[TimeControl "40/5400+30:1800+30"]

1. d4 {[%emt 0:00:00]} Nf6 {[%emt 0:00:00]} 2. Nf3 {[%emt 0:00:00]} d6 {[%emt 0:00:17]} 3. Bg5 {[%emt 0:01:14]} Nbd7 {[%emt 0:00:28]} 4. e3 {[%emt 0:02:12]} e5 {[%emt 0:05:47]} 5. Nc3 {[%emt 0:08:06]} c6 {[%emt 0:02:29]} 6. Be2 {[%emt 0:03:58]} Qa5 {[%emt 0:01:24]} 7. Bh4 {[%emt 0:07:15]} Ne4 {[%emt 0:06:14]} 8. Qd3 {[%emt 0:05:31]} d5 {[%emt 0:11:44]} 9. O-O {[%emt 0:07:01]} Nxc3 {[%emt 0:05:28]} 10. Qxc3 {[%emt 0:00:21]} Bb4 {[%emt 0:01:43]} 11. Qb3 {[%emt 0:00:31]} e4 {[%emt 0:03:03]} 12. Ne1 {[%emt 0:01:17]} h6 {[%emt 0:08:45]} 13. c4 {[%emt 0:08:49]} g5 {[%emt 0:05:44]} 14. Bg3 {[%emt 0:00:09]} Be7 {[%emt 0:03:29]} 15. cxd5 {[%emt 0:02:21]} cxd5 {[%emt 0:04:57]} 16. f3 {[%emt 0:03:46]} Qd2 {[%emt 0:10:09]} 17. Rf2 {[%emt 0:01:40]} O-O {[%emt 0:02:55]} 18. fxe4 {[%emt 0:03:48]} Nf6 {[%emt 0:04:46]} 19. Bf3 {[%emt 0:03:12]} Qa5 {[%emt 0:00:51]} 20. exd5 {[%emt 0:00:43]} g4 {[%emt 0:00:37]} 21. d6 {[%emt 0:06:47]} Bd8 {[%emt 0:06:54]} 22. Be2 {[%emt 0:00:56]} Ne4 {[%emt 0:00:26]} 23. Rf1 {[%emt 0:05:58]} Nxg3 {[%emt 0:00:50]} 24. hxg3 {[%emt 0:00:02]} Be6 {[%emt 0:01:35]} 25. Bc4 {[%emt 0:01:17]} Bxc4 {[%emt 0:00:44]} 26. Qxc4 {[%emt 0:00:03]} Bg5 {[%emt 0:00:18]} 27. Qd3 {[%emt 0:05:39]} Rae8 {[%emt 0:00:53]} 28. e4 {[%emt 0:01:01]} Qb6 {[%emt 0:00:27]} 29. Rf5 {[%emt 0:10:33]} Qxd6 {[%emt 0:00:33]} 30. Nc2 {[%emt 0:00:53]} Rc8 {[%emt 0:00:51]} 31. Rd5 {[%emt 0:01:49]} Qe6 {[%emt 0:00:52]} 32. Ne3 {[%emt 0:01:25]} Qb6 {[%emt 0:01:31]} 33. b3 {[%emt 0:01:39]} Qb4 {[%emt 0:00:29]} 34. Nc4 {[%emt 0:01:05]} b5 {[%emt 0:02:27]} 35. Ne5 {[%emt 0:00:59]} Rc3 {[%emt 0:05:27]} 36. Qd1 {[%emt 0:01:24]} Be3+ {[%emt 0:00:33]} 37. Kh2 {[%emt 0:00:31]} h5 {[%emt 0:00:18]} 38. Nd7 {[%emt 0:01:37]} Rfc8 {[%emt 0:01:41]} 39. Rxh5 {[%emt 0:01:42]} f6 {[%emt 0:00:44]} 40. Qxg4+ {[%emt 0:00:37]} Kf7 {[%emt 0:01:05]} 41. Rh7+ {[%emt 0:30:35]} Ke8 {[%emt 0:30:18]} 42. Qg8+ {[%emt 0:00:11] Ra8} 1-0

[Event "22nd Ruzomberok Open 2019"]
[Site "Ruzomberok"]
[Date "2019.07.05"]
[Round "7.21"]
[White "Horbal, Jozef"]
[Black "Pasztor, Ladislav"]
[Result "1/2-1/2"]
[ECO "C41"]
[WhiteElo "1660"]
[BlackElo "1857"]
[Annotator "NA"]
[PlyCount "134"]
[EventDate "2019.06.29"]
[EventType "swiss"]
[EventCountry "SVK"]
[SourceTitle "playchess.com"]
[Source "ChessBase"]
[SourceQuality "1"]
[TimeControl "40/5400+30:1800+30"]

1. e4 {[%emt 0:00:00]} e5 {[%emt 0:01:46]} 2. Nf3 {[%emt 0:00:00]} d6 {[%emt 0:00:18]} 3. d4 {[%emt 0:02:11]} exd4 {[%emt 0:00:15]} 4. Nxd4 {[%emt 0:00:28]} Be7 {[%emt 0:04:39]} 5. Nc3 {[%emt 0:00:31]} Nf6 {[%emt 0:03:07]} 6. Be2 {[%emt 0:00:53]} Nbd7 {[%emt 0:05:36]} 7. h3 {[%emt 0:03:06]} Nc5 {[%emt 0:04:49]} 8. Bf3 {[%emt 0:04:18]} c6 {[%emt 0:03:43]} 9. Be3 {[%emt 0:03:47]} Qc7 {[%emt 0:01:35]} 10. O-O {[%emt 0:04:31]} Be6 {[%emt 0:10:36]} 11. Nxe6 {[%emt 0:09:54]} Nxe6 {[%emt 0:01:31]} 12. a4 {[%emt 0:06:10]} a5 {[%emt 0:05:31]} 13. Qd2 {[%emt 0:03:33]} Rd8 {[%emt 0:02:55]} 14. Rad1 {[%emt 0:04:22]} O-O {[%emt 0:02:19]} 15. Qe2 {[%emt 0:03:10]} Nd7 {[%emt 0:02:23]} 16. Bg4 {[%emt 0:07:34]} Ne5 {[%emt 0:03:24]} 17. f4 {[%emt 0:02:01]} Nxg4 {[%emt 0:01:38]} 18. Qxg4 {[%emt 0:00:24]} Bf6 {[%emt 0:06:20]} 19. Rd3 {[%emt 0:05:43]} Nc5 {[%emt 0:07:12]} 20. Bxc5 {[%emt 0:13:05]} dxc5 {[%emt 0:00:11]} 21. e5 {[%emt 0:00:12]} Be7 {[%emt 0:01:15]} 22. Rfd1 {[%emt 0:02:04]} c4 {[%emt 0:01:27]} 23. Rxd8 {[%emt 0:01:14]} Rxd8 {[%emt 0:02:14]} 24. Rxd8+ {[%emt 0:00:35]} Qxd8 {[%emt 0:01:03]} 25. Kh1 {[%emt 0:02:20]} g6 {[%emt 0:09:56]} 26. f5 {[%emt 0:00:53]} h5 {[%emt 0:02:37]} 27. Qg3 {[%emt 0:01:44]} Bh4 {[%emt 0:02:41]} 28. Qf3 {[%emt 0:01:38]} Qd4 {[%emt 0:02:41]} 29. fxg6 {[%emt 0:00:49]} fxg6 {[%emt 0:02:20]} 30. e6 {[%emt 0:01:29]} Qf6 {[%emt 0:00:42]} 31. Qe2 {[%emt 0:00:49]} Qf2 {[%emt 0:01:27]} 32. Qxf2 {[%emt 0:04:46]} Bxf2 {[%emt 0:00:07]} 33. Ne4 {[%emt 0:00:18]} Be1 {[%emt 0:02:55]} 34. Nd6 {[%emt 0:00:53]} Kf8 {[%emt 0:00:14]} 35. Nxb7 {[%emt 0:01:39]} Ke7 {[%emt 0:00:05]} 36. c3 {[%emt 0:00:30]} Kxe6 {[%emt 0:00:42]} 37. Nxa5 {[%emt 0:00:15]} Kd5 {[%emt 0:01:01]} 38. Nb7 {[%emt 0:00:41]} c5 39. a5 {[%emt 0:00:04]} Kc6 {[%emt 0:02:42]} 40. a6 {[%emt 0:00:30]} Bf2 {[%emt 0:00:11]} 41. Na5+ {[%emt 0:30:26]} Kb6 {[%emt 0:30:19]} 42. Nxc4+ {[%emt 0:00:30]} Kxa6 {[%emt 0:00:08]} 43. g4 {[%emt 0:00:39]} hxg4 {[%emt 0:00:53]} 44. hxg4 {[%emt 0:00:09]} Kb5 {[%emt 0:00:21]} 45. Ne5 {[%emt 0:01:02]} g5 {[%emt 0:00:00]} 46. Kg2 {[%emt 0:00:00]} Be3 {[%emt 0:00:00]} 47. Kf3 {[%emt 0:00:00]} Bf4 {[%emt 0:00:00]} 48. Nd3 {[%emt 0:00:00]} Bd6 {[%emt 0:00:00]} 49. Ke4 {[%emt 0:00:00]} Kc4 {[%emt 0:00:00]} 50. b4 {[%emt 0:00:00]} cxb4 {[%emt 0:00:00]} 51. cxb4 {[%emt 0:00:00]} Be7 {[%emt 0:00:00]} 52. Ne5+ {[%emt 0:00:00]} Kb5 {[%emt 0:00:00]} 53. Nd3 {[%emt 0:00:00]} Kc4 {[%emt 0:00:00]} 54. Ne5+ {[%emt 0:00:00]} Kb5 {[%emt 0:00:00]} 55. Kf5 {[%emt 0:00:00]} Bxb4 {[%emt 0:00:00]} 56. Kxg5 {[%emt 0:00:00]} Bd2+ {[%emt 0:00:00]} 57. Kf5 {[%emt 0:00:00]} Kc5 {[%emt 0:00:00]} 58. Nd3+ {[%emt 0:00:00]} Kd6 {[%emt 0:00:00]} 59. Nf4 {[%emt 0:00:00]} Ke7 {[%emt 0:00:00]} 60. g5 {[%emt 0:00:00]} Bxf4 {[%emt 0:00:00]} 61. Kxf4 {[%emt 0:00:00]} Kf7 {[%emt 0:00:00]} 62. Kg4 {[%emt 0:00:00]} Kg6 {[%emt 0:00:00]} 63. Kh4 {[%emt 0:00:00]} Kg7 {[%emt 0:00:00]} 64. Kh5 {[%emt 0:00:00]} Kh7 {[%emt 0:00:00]} 65. g6+ {[%emt 0:00:00]} Kg7 {[%emt 0:00:00]} 66. Kg5 {[%emt 0:00:00]} Kg8 {[%emt 0:00:00]} 67. Kf6 {[%emt 0:00:00]} Kf8 {[%emt 0:00:00]} 1/2-1/2

[Event "22nd Ruzomberok Open 2019"]
[Site "Ruzomberok"]
[Date "2019.07.05"]
[Round "7.22"]
[White "Cernekova, Martina"]
[Black "Salomons, Lorenzo"]
[Result "0-1"]
[ECO "D59"]
[WhiteElo "1659"]
[BlackElo "1842"]
[Annotator "NA"]
[PlyCount "64"]
[EventDate "2019.06.29"]
[EventType "swiss"]
[EventCountry "SVK"]
[SourceTitle "playchess.com"]
[Source "ChessBase"]
[SourceQuality "1"]
[TimeControl "40/5400+30:1800+30"]

1. d4 {[%emt 0:02:17]} d5 {[%emt 0:00:41]} 2. c4 {[%emt 0:00:04]} e6 {[%emt 0:00:56]} 3. Nc3 {[%emt 0:00:08]} Nf6 {[%emt 0:00:14]} 4. Bg5 {[%emt 0:00:15]} Be7 {[%emt 0:00:07]} 5. e3 {[%emt 0:00:29]} h6 {[%emt 0:01:38]} 6. Bh4 {[%emt 0:00:15]} O-O {[%emt 0:02:30]} 7. Nf3 {[%emt 0:00:18]} b6 {[%emt 0:01:22]} 8. cxd5 {[%emt 0:00:40]} Nxd5 {[%emt 0:00:08]} 9. Bxe7 {[%emt 0:00:26]} Qxe7 {[%emt 0:00:06]} 10. Nxd5 {[%emt 0:00:19]} exd5 {[%emt 0:00:09]} 11. Bd3 {[%emt 0:00:42]} Be6 {[%emt 0:00:30]} 12. O-O {[%emt 0:00:44]} c5 {[%emt 0:00:40]} 13. b3 {[%emt 0:00:51]} Rc8 {[%emt 0:03:58]} 14. Rc1 {[%emt 0:00:39]} Nd7 {[%emt 0:01:05]} 15. Qc2 {[%emt 0:00:57]} Rc7 {[%emt 0:01:18]} 16. Bf5 {[%emt 0:00:59]} c4 {[%emt 0:16:31]} 17. Bxe6 {[%emt 0:01:50]} Qxe6 {[%emt 0:01:18]} 18. Qe2 {[%emt 0:01:07]} b5 {[%emt 0:06:37]} 19. b4 {[%emt 0:01:33]} a5 {[%emt 0:03:44]} 20. a3 {[%emt 0:01:00]} axb4 {[%emt 0:00:09]} 21. axb4 {[%emt 0:00:15]} Ra4 {[%emt 0:03:34]} 22. Qb2 {[%emt 0:00:38]} Qd6 {[%emt 0:00:50]} 23. Ra1 {[%emt 0:01:13]} c3 {[%emt 0:05:31]} 24. Qc2 {[%emt 0:01:05]} Rxb4 {[%emt 0:02:40]} 25. Ra8+ {[%emt 0:00:58]} Nf8 {[%emt 0:00:19]} 26. Ne5 {[%emt 0:00:58]} Rb2 {[%emt 0:01:15]} 27. Qf5 {[%emt 0:01:00]} c2 {[%emt 0:01:22]} 28. Nd3 {[%emt 0:01:38]} Rb1 {[%emt 0:01:16]} 29. Nc1 {[%emt 0:01:21]} b4 {[%emt 0:03:00]} 30. Rc8 {[%emt 0:00:26]} b3 {[%emt 0:02:27]} 31. Rxc7 {[%emt 0:03:42]} Qxc7 {[%emt 0:00:35]} 32. Qxd5 {[%emt 0:00:34]} b2 {[%emt 0:01:33]} 0-1

[Event "22nd Ruzomberok Open 2019"]
[Site "Ruzomberok"]
[Date "2019.07.05"]
[Round "7.23"]
[White "Ucekajova, Veronika"]
[Black "Verba, Vladimir"]
[Result "1-0"]
[ECO "B27"]
[WhiteElo "1836"]
[BlackElo "1708"]
[Annotator "NA"]
[PlyCount "37"]
[EventDate "2019.06.29"]
[EventType "swiss"]
[EventCountry "SVK"]
[SourceTitle "playchess.com"]
[Source "ChessBase"]
[SourceQuality "1"]
[TimeControl "40/5400+30:1800+30"]

1. e4 {[%emt 0:00:00]} c5 {[%emt 0:00:00]} 2. Nf3 {[%emt 0:00:00]} g6 {[%emt 0:00:08]} 3. d4 {[%emt 0:00:06]} cxd4 {[%emt 0:00:20]} 4. Nxd4 {[%emt 0:00:09]} Bg7 {[%emt 0:01:17]} 5. Nc3 {[%emt 0:00:19]} Nc6 {[%emt 0:00:34]} 6. Nxc6 {[%emt 0:00:15]} bxc6 {[%emt 0:00:40]} 7. Bc4 {[%emt 0:00:10]} d6 {[%emt 0:00:59]} 8. O-O {[%emt 0:00:10]} Nf6 {[%emt 0:00:10]} 9. e5 {[%emt 0:00:19]} Ng8 {[%emt 0:04:23]} 10. exd6 {[%emt 0:02:12]} exd6 {[%emt 0:09:28]} 11. Re1+ {[%emt 0:01:31]} Ne7 {[%emt 0:01:03]} 12. Bg5 {[%emt 0:04:58]} f6 {[%emt 0:03:17]} 13. Bf4 {[%emt 0:02:27]} d5 {[%emt 0:01:08]} 14. Bxd5 {[%emt 0:15:19]} cxd5 {[%emt 0:02:04]} 15. Nxd5 {[%emt 0:00:13]} Kf7 {[%emt 0:13:15]} 16. Rxe7+ {[%emt 0:01:03]} Qxe7 {[%emt 0:00:07]} 17. Nxe7 {[%emt 0:00:12]} Kxe7 {[%emt 0:00:10]} 18. Qd6+ {[%emt 0:07:02]} Kf7 {[%emt 0:01:56]} 19. Qd5+ {[%emt 0:00:38]} 1-0

[Event "22nd Ruzomberok Open 2019"]
[Site "Ruzomberok"]
[Date "2019.07.05"]
[Round "7.25"]
[White "Profant, Jan"]
[Black "Zilkay, Dominik"]
[Result "0-1"]
[ECO "A20"]
[WhiteElo "1871"]
[BlackElo "1328"]
[Annotator "NA"]
[PlyCount "48"]
[EventDate "2019.06.29"]
[EventType "swiss"]
[EventCountry "SVK"]
[SourceTitle "playchess.com"]
[Source "ChessBase"]
[SourceQuality "1"]
[TimeControl "40/5400+30:1800+30"]

1. c4 {[%emt 0:00:00]} e5 {[%emt 0:01:43]} 2. g3 {[%emt 0:01:05]} Nc6 {[%emt 0:00:07]} 3. Bg2 {[%emt 0:00:08]} f5 {[%emt 0:00:09]} 4. d3 {[%emt 0:00:39]} Nf6 {[%emt 0:00:36]} 5. a3 {[%emt 0:00:10]} a5 {[%emt 0:00:30]} 6. Nc3 {[%emt 0:00:14]} Be7 {[%emt 0:01:13]} 7. Nh3 {[%emt 0:00:21]} O-O {[%emt 0:01:32]} 8. O-O {[%emt 0:00:13]} d6 {[%emt 0:04:24]} 9. Rb1 {[%emt 0:03:30]} Qe8 {[%emt 0:02:16]} 10. b4 {[%emt 0:00:28]} axb4 {[%emt 0:00:50]} 11. axb4 {[%emt 0:00:02]} f4 {[%emt 0:18:32]} 12. Ng5 {[%emt 0:14:13]} Qh5 {[%emt 0:01:13]} 13. Nf3 {[%emt 0:00:15]} Bh3 {[%emt 0:05:46]} 14. Nd5 {[%emt 0:18:43]} Ng4 {[%emt 0:00:12]} 15. Bb2 {[%emt 0:00:27]} fxg3 {[%emt 0:04:45]} 16. fxg3 {[%emt 0:03:33]} Bxg2 {[%emt 0:00:11]} 17. Kxg2 {[%emt 0:00:14]} Rxf3 {[%emt 0:00:53]} 18. Kxf3 {[%emt 0:00:35]} Rf8+ {[%emt 0:00:20]} 19. Nf4 {[%emt 0:00:52]} exf4 {[%emt 0:00:36]} 20. gxf4 {[%emt 0:01:41]} Nce5+ {[%emt 0:05:02]} 21. Ke4 {[%emt 0:01:08]} Nc6 {[%emt 0:01:35]} 22. f5 {[%emt 0:09:45]} Bg5 {[%emt 0:01:08]} 23. Rh1 {[%emt 0:08:09]} Re8+ {[%emt 0:01:09]} 24. Kf3 {[%emt 0:00:10]} Qh3# {[%emt 0:00:05]} 0-1

[Event "22nd Ruzomberok Open 2019"]
[Site "Ruzomberok"]
[Date "2019.07.05"]
[Round "7.26"]
[White "Bartanus, Stanislav"]
[Black "Cabanova, Kristina"]
[Result "1/2-1/2"]
[ECO "A13"]
[WhiteElo "1781"]
[BlackElo "1728"]
[Annotator "NA"]
[PlyCount "87"]
[EventDate "2019.06.29"]
[EventType "swiss"]
[EventCountry "SVK"]
[SourceTitle "playchess.com"]
[Source "ChessBase"]
[SourceQuality "1"]
[TimeControl "40/5400+30:1800+30"]

1. c4 {[%emt 0:00:00]} e6 {[%emt 0:00:00]} 2. Nc3 {[%emt 0:00:19]} d5 {[%emt 0:00:38]} 3. cxd5 {[%emt 0:01:50]} exd5 {[%emt 0:00:10]} 4. g3 {[%emt 0:00:14]} Nf6 {[%emt 0:00:15]} 5. Bg2 {[%emt 0:00:08]} c6 {[%emt 0:00:14]} 6. d3 {[%emt 0:01:32]} Bd6 {[%emt 0:01:34]} 7. Nf3 {[%emt 0:02:02]} O-O {[%emt 0:02:43]} 8. O-O {[%emt 0:00:38]} Bg4 {[%emt 0:01:17]} 9. h3 {[%emt 0:03:39]} Bh5 {[%emt 0:00:59]} 10. Qb3 {[%emt 0:02:16]} Qc7 {[%emt 0:01:01]} 11. Bg5 {[%emt 0:01:05]} Nbd7 {[%emt 0:00:41]} 12. Rac1 {[%emt 0:00:30]} Qb6 {[%emt 0:01:46]} 13. Qxb6 {[%emt 0:05:33]} axb6 {[%emt 0:00:40]} 14. a3 {[%emt 0:01:55]} Rfe8 {[%emt 0:01:34]} 15. Rfe1 {[%emt 0:00:27]} b5 {[%emt 0:04:30]} 16. e4 {[%emt 0:07:54]} Bxf3 {[%emt 0:04:45]} 17. Bxf3 {[%emt 0:00:31]} Ne5 {[%emt 0:00:24]} 18. Be2 {[%emt 0:00:30]} d4 {[%emt 0:00:59]} 19. Na2 {[%emt 0:02:33]} Nfd7 {[%emt 0:03:11]} 20. f4 {[%emt 0:02:15]} Ng6 {[%emt 0:00:38]} 21. Bg4 {[%emt 0:00:47]} Nc5 {[%emt 0:01:38]} 22. Nb4 {[%emt 0:02:25]} h6 {[%emt 0:02:23]} 23. e5 {[%emt 0:00:45]} Bf8 {[%emt 0:00:10]} 24. Bh4 {[%emt 0:00:35]} Nxh4 {[%emt 0:07:21]} 25. gxh4 {[%emt 0:00:10]} Ra4 {[%emt 0:00:14]} 26. Bd1 {[%emt 0:00:16]} Rxb4 {[%emt 0:00:42]} 27. axb4 {[%emt 0:00:16]} Nxd3 {[%emt 0:00:06]} 28. Bb3 {[%emt 0:00:35]} Bxb4 {[%emt 0:02:15]} 29. Rf1 {[%emt 0:00:11]} Nxc1 {[%emt 0:00:26]} 30. Rxc1 {[%emt 0:00:02]} Bd2 {[%emt 0:01:15]} 31. Rf1 {[%emt 0:00:08]} b6 {[%emt 0:02:05]} 32. Kg2 {[%emt 0:00:29]} Kf8 {[%emt 0:01:17]} 33. Kf3 {[%emt 0:00:06]} c5 {[%emt 0:01:01]} 34. Bd5 {[%emt 0:00:49]} Rd8 {[%emt 0:02:21]} 35. Ke4 {[%emt 0:01:31]} Be3 {[%emt 0:01:27]} 36. Ra1 {[%emt 0:01:41]} Bxf4 {[%emt 0:11:55]} 37. Ra7 {[%emt 0:00:55]} Bg3 {[%emt 0:07:14]} 38. Rxf7+ {[%emt 0:00:50]} Ke8 {[%emt 0:00:06]} 39. Rxg7 {[%emt 0:00:27]} Bxh4 {[%emt 0:00:21]} 40. Rh7 {[%emt 0:01:58]} Bg5 {[%emt 0:00:49]} 41. h4 {[%emt 0:33:04]} Bxh4 {[%emt 0:31:31]} 42. Rxh6 {[%emt 0:00:02]} Be7 {[%emt 0:00:44]} 43. Bc6+ {[%emt 0:02:43]} Kf7 {[%emt 0:02:28]} 44. Rh7+ 1/2-1/2

[Event "22nd Ruzomberok Open 2019"]
[Site "Ruzomberok"]
[Date "2019.07.05"]
[Round "7.27"]
[White "Korenova, Simona"]
[Black "Polko, Pavol"]
[Result "1-0"]
[ECO "A22"]
[WhiteElo "1764"]
[BlackElo "1638"]
[Annotator "NA"]
[PlyCount "81"]
[EventDate "2019.06.29"]
[EventType "swiss"]
[EventCountry "SVK"]
[SourceTitle "playchess.com"]
[Source "ChessBase"]
[SourceQuality "1"]
[TimeControl "40/5400+30:1800+30"]

1. c4 {[%emt 0:00:00]} e5 {[%emt 0:03:35]} 2. Nc3 {[%emt 0:00:00]} Nf6 {[%emt 0:00:14]} 3. g3 {[%emt 0:00:00]} Bb4 {[%emt 0:00:16]} 4. Bg2 {[%emt 0:00:08]} Bxc3 {[%emt 0:00:28]} 5. bxc3 {[%emt 0:00:08]} O-O {[%emt 0:00:45]} 6. d4 {[%emt 0:01:41]} d6 {[%emt 0:00:07]} 7. Nf3 {[%emt 0:00:26]} Nc6 {[%emt 0:01:15]} 8. O-O {[%emt 0:01:11]} Qd7 {[%emt 0:00:39]} 9. Qc2 {[%emt 0:01:58]} h6 {[%emt 0:00:28]} 10. Rd1 {[%emt 0:01:18]} Qf5 {[%emt 0:02:35]} 11. Qb3 {[%emt 0:03:05]} Qh5 {[%emt 0:01:45]} 12. Nh4 {[%emt 0:04:50]} g5 {[%emt 0:02:14]} 13. Bf3 {[%emt 0:03:00]} g4 {[%emt 0:02:25]} 14. Bg2 {[%emt 0:01:37]} e4 {[%emt 0:00:20]} 15. Qc2 {[%emt 0:01:15]} Re8 {[%emt 0:00:40]} 16. Qd2 {[%emt 0:04:52]} e3 {[%emt 0:01:17]} 17. fxe3 {[%emt 0:01:24]} Ne4 {[%emt 0:00:42]} 18. Qd3 {[%emt 0:01:48]} f5 {[%emt 0:01:39]} 19. Rf1 {[%emt 0:01:03]} Nd8 {[%emt 0:00:46]} 20. Rf4 {[%emt 0:01:14]} Nf7 {[%emt 0:02:25]} 21. Bxe4 {[%emt 0:02:34]} fxe4 {[%emt 0:00:23]} 22. Rxe4 {[%emt 0:00:49]} Bd7 {[%emt 0:00:57]} 23. Rxe8+ {[%emt 0:09:06]} Rxe8 {[%emt 0:00:02]} 24. e4 {[%emt 0:00:42]} b5 {[%emt 0:01:50]} 25. cxb5 {[%emt 0:02:18]} Bxb5 {[%emt 0:00:29]} 26. c4 {[%emt 0:01:43]} Bc6 {[%emt 0:00:12]} 27. d5 {[%emt 0:00:25]} Bd7 {[%emt 0:00:30]} 28. Bf4 {[%emt 0:02:18]} Ne5 {[%emt 0:02:24]} 29. Qd4 {[%emt 0:03:15]} a5 {[%emt 0:04:16]} 30. c5 {[%emt 0:01:36]} Rb8 {[%emt 0:03:39]} 31. c6 {[%emt 0:01:29]} Bc8 {[%emt 0:00:13]} 32. Qa7 {[%emt 0:00:35]} Rb2 {[%emt 0:01:25]} 33. Qxc7 {[%emt 0:05:13]} Qe8 {[%emt 0:01:01]} 34. Bxe5 {[%emt 0:02:47]} dxe5 35. d6 Rc2 {[%emt 0:06:02]} 36. d7 {[%emt 0:01:16]} Bxd7 {[%emt 0:00:02]} 37. cxd7 {[%emt 0:00:30]} Qf8 {[%emt 0:03:01]} 38. Qxc2 {[%emt 0:00:13]} Kg7 {[%emt 0:00:40]} 39. Nf5+ {[%emt 0:00:11]} Kf6 {[%emt 0:00:23]} 40. Qc6+ {[%emt 0:00:06]} Kg5 {[%emt 0:00:06]} 41. d8=Q+ {[%emt 0:30:16]} 1-0

[Event "22nd Ruzomberok Open 2019"]
[Site "Ruzomberok"]
[Date "2019.07.05"]
[Round "7.28"]
[White "Petrasko, Jozef"]
[Black "Mc Aleenan, Charles"]
[Result "0-1"]
[ECO "A11"]
[WhiteElo "1455"]
[BlackElo "1746"]
[Annotator "NA"]
[PlyCount "44"]
[EventDate "2019.06.29"]
[EventType "swiss"]
[EventCountry "SVK"]
[SourceTitle "playchess.com"]
[Source "ChessBase"]
[SourceQuality "1"]
[TimeControl "40/5400+30:1800+30"]

1. c4 {[%emt 0:00:00]} c6 {[%emt 0:00:00]} 2. Nc3 {[%emt 0:00:00]} d5 {[%emt 0:00:00]} 3. cxd5 {[%emt 0:00:01]} cxd5 {[%emt 0:00:00]} 4. e3 {[%emt 0:01:12]} Nc6 {[%emt 0:02:11]} 5. d4 {[%emt 0:01:52]} Nf6 {[%emt 0:02:09]} 6. Nf3 {[%emt 0:00:21]} Bg4 {[%emt 0:03:19]} 7. Bd3 {[%emt 0:04:02]} e6 {[%emt 0:03:57]} 8. a3 {[%emt 0:00:40]} Bd6 {[%emt 0:03:06]} 9. Nb5 {[%emt 0:04:15]} Bb8 {[%emt 0:03:25]} 10. Qc2 {[%emt 0:02:00]} O-O {[%emt 0:05:07]} 11. b4 {[%emt 0:04:19]} a6 {[%emt 0:05:18]} 12. Nc3 {[%emt 0:01:11]} e5 {[%emt 0:03:31]} 13. e4 {[%emt 0:05:04]} Bxf3 {[%emt 0:06:56]} 14. gxf3 {[%emt 0:01:03]} Nxd4 {[%emt 0:00:16]} 15. Qd1 {[%emt 0:01:15]} Qc8 {[%emt 0:02:52]} 16. Bd2 {[%emt 0:06:19]} Qh3 {[%emt 0:03:46]} 17. Be2 {[%emt 0:08:59]} Qg2 {[%emt 0:03:15]} 18. Rf1 {[%emt 0:00:35]} dxe4 {[%emt 0:00:36]} 19. f4 {[%emt 0:05:08]} exf4 {[%emt 0:03:52]} 20. Bxf4 {[%emt 0:00:36]} Bxf4 {[%emt 0:01:12]} 21. Qxd4 {[%emt 0:00:12]} Rad8 {[%emt 0:00:17]} 22. Qc4 {[%emt 0:03:16]} Bd2+ {[%emt 0:00:22] Rh1} 0-1

[Event "22nd Ruzomberok Open 2019"]
[Site "Ruzomberok"]
[Date "2019.07.05"]
[Round "7.29"]
[White "Taragel, Marian"]
[Black "Laurencsik, Alexander"]
[Result "0-1"]
[ECO "B14"]
[WhiteElo "1636"]
[BlackElo "1742"]
[Annotator "NA"]
[PlyCount "58"]
[EventDate "2019.06.29"]
[EventType "swiss"]
[EventCountry "SVK"]
[SourceTitle "playchess.com"]
[Source "ChessBase"]
[SourceQuality "1"]
[TimeControl "40/5400+30:1800+30"]

1. e4 {[%emt 0:00:00]} c6 {[%emt 0:00:00]} 2. d4 {[%emt 0:00:56]} d5 {[%emt 0:00:00]} 3. exd5 {[%emt 0:01:06]} cxd5 {[%emt 0:00:00]} 4. c4 {[%emt 0:01:45]} Nf6 {[%emt 0:00:00]} 5. Nc3 {[%emt 0:01:54]} e6 {[%emt 0:00:00]} 6. Nf3 {[%emt 0:01:32]} Nc6 {[%emt 0:01:32]} 7. cxd5 {[%emt 0:03:47]} Nxd5 {[%emt 0:01:32]} 8. Bc4 {[%emt 0:01:47]} Bb4 {[%emt 0:03:21]} 9. Bd2 {[%emt 0:01:31]} Bxc3 {[%emt 0:01:51]} 10. bxc3 {[%emt 0:00:45]} h6 {[%emt 0:01:44]} 11. O-O {[%emt 0:02:18]} O-O {[%emt 0:01:27]} 12. Re1 {[%emt 0:03:32]} b6 {[%emt 0:01:32]} 13. Bb5 {[%emt 0:04:00]} Bb7 {[%emt 0:03:41]} 14. Qa4 {[%emt 0:03:25]} Rc8 {[%emt 0:05:42]} 15. Rac1 {[%emt 0:07:35]} Nf6 {[%emt 0:03:55]} 16. c4 {[%emt 0:09:22]} Nxd4 {[%emt 0:03:56]} 17. Bb4 {[%emt 0:00:59]} Nxf3+ {[%emt 0:04:41]} 18. gxf3 {[%emt 0:00:11]} Bxf3 {[%emt 0:00:44]} 19. Bxf8 {[%emt 0:01:04]} Ne4 {[%emt 0:04:55]} 20. Rxe4 {[%emt 0:14:07]} Qg5+ {[%emt 0:03:32]} 21. Kf1 {[%emt 0:00:44]} Qxc1+ {[%emt 0:01:26]} 22. Re1 {[%emt 0:00:51]} Qg5 {[%emt 0:00:16]} 23. Re3 {[%emt 0:01:49]} Qg2+ {[%emt 0:00:08]} 24. Ke1 {[%emt 0:00:25]} Qg1+ {[%emt 0:00:12]} 25. Kd2 {[%emt 0:00:26]} Rd8+ {[%emt 0:00:23]} 26. Kc3 {[%emt 0:07:30]} Qa1+ {[%emt 0:00:23]} 27. Kb4 {[%emt 0:00:43]} a5+ {[%emt 0:00:10]} 28. Ka3 {[%emt 0:01:08]} Qc1+ {[%emt 0:00:08]} 29. Kb3 {[%emt 0:00:30]} Bd1# {[%emt 0:00:11]} 0-1